Cogmind - Beta 13 @@@ ROGUE MODE // 2024.02.29 @ 12:17:58 Player: Takagiro Result: Destroyed by B-75 Beast with Heavy Machine Gun Performance ------------- Evolutions (1) 500 Regions Visited (5) 1000 Robots Destroyed (30) 150 Value Destroyed (699) 699 Prototype IDs (1) 20 Alien Tech Used (0) 0 Bonus (363) 363 TOTAL SCORE: 2732 Bonus ------- Follower Combat Kills 363 Cogmind --------- Core Integrity 0/400 Matter 290/300 Energy 127/290 System Corruption 0% Temperature Cool (0) Movement Core (400) Ox7 Location -6/Proximity Caves Parts ------- > --- POWER (1) -------- Improved Deuterium Engine > --- PROPULSION (2) --- (None) > --- UTILITY (4) ------ Medium Storage Unit Visual Processing Unit Makeshift Hacking Suite > --- WEAPON (2) ------- Rocket Launcher > --- INVENTORY (10) --- Heavy Beamcaster Heavy Battle Rifle Heavy Assault Cannon Grenade Launcher Self-destruct Interrupter (50) Peak State ------------ > --- POWER ------------ Ion Engine > --- PROPULSION ------- Makeshift Leg Flexi-carbon Leg > --- UTILITY ---------- Medium Storage Unit Visual Processing Unit Makeshift Hacking Suite Hacking Drone Bay > --- WEAPON ----------- Heavy Assault Cannon > --- INVENTORY -------- Ion Engine Improved Deuterium Engine Heavy Beamcaster Heavy Battle Rifle Heavy Assault Cannon Grenade Launcher Rocket Launcher Self-destruct Interrupter [Rating: 34] Favorites ----------- Power Ion Engine Engine Ion Engine Propulsion Makeshift Leg Leg Makeshift Leg Wheel Wheel Utility Medium Storage Unit Device Heat Sink Storage Medium Storage Unit Processor Visual Processing Unit Hackware Makeshift Hacking Suite Weapon Heavy Assault Cannon Energy Gun Medium Laser Ballistic Gun Light Assault Rifle Ballistic Cannon Heavy Assault Cannon Launcher Rocket Launcher Build | -11 -10 -9 -9 -7 -6 ------- Run | Yrd Mat Mat Min Zio Pro Slots Evolved 2 | . . 2 . . . Power . | . . . . . . Propulsion . | . . . . . . Utility 2 | . . 2 . . . Weapon . | . . . . . . Parts Attached 23 | 6 2 8 . 2 5 Power 5 | 1 . 2 . . 2 Engine 5 | 1 . 2 . . 2 Core . | . . . . . . Reactor . | . . . . . . Propulsion 6 | 2 . 2 . 1 1 Treads . | . . . . . . Leg 2 | . . . . 1 1 Wheel 4 | 2 . 2 . . . Hover . | . . . . . . Flight . | . . . . . . Utility 7 | 1 2 2 . 1 1 Device 3 | . 1 1 . 1 . Storage 2 | 1 1 . . . . Processor 1 | . . 1 . . . Hackware 1 | . . . . . 1 Protection . | . . . . . . Artifact . | . . . . . . Weapon 5 | 2 . 2 . . 1 Energy Gun 1 | 1 . . . . . Energy Cannon . | . . . . . . Ballistic Gun 2 | 1 . 1 . . . Ballistic Cannon 1 | . . 1 . . . Launcher 1 | . . . . . 1 Special Weapon . | . . . . . . Impact Weapon . | . . . . . . Slashing Weapon . | . . . . . . Piercing Weapon . | . . . . . . Special Melee Weapon . | . . . . . . Unidentified Prototypes 1 | . . . . 1 . Parts Lost 14 | . . 7 . . 7 Power 4 | . . 2 . . 2 Propulsion 4 | . . 2 . . 2 Utility 3 | . . 1 . . 2 Weapon 3 | . . 2 . . 1 Highest Loss Streak 6 | . . 3 . . 6 To Critical Strikes . | . . . . . . Average Slot Usage (%) 79 | . 92 84 77 76 80 Engine 10 | . 14 10 11 11 10 Leg 7 | . . . . 8 15 Wheel 7 | . 28 17 22 5 . Device 18 | . 7 18 11 18 20 Storage 11 | . 14 11 11 11 11 Processor 10 | . . 9 11 11 11 Energy Gun 1 | . 14 6 . . . Ballistic Gun 1 | . 14 6 . . . Ballistic Cannon 9 | . . 4 11 11 10 Naked Turns . | . . . . . . Heaviest Build 29 | 13 19 29 28 29 29 Greatest Support 40 | 26 26 26 22 22 40 Greatest Overweight (x) 9 | . . 2 1 9 7 Average Overweight (x) . | . . . 1 1 . Largest Inventory Capacity 10 | 8 10 10 10 10 10 Average Capacity 9 | 7 9 10 10 10 10 Most Carried 10 | 6 10 10 10 10 10 Average Carried 9 | 3 8 9 10 9 9 Final Capacity 10 | 8 10 10 10 10 10 Final Carried 10 | 6 10 10 10 10 6 Class Distribution -------------------- 100% | Mutant Dominant Class ---------------- Mutant | -10/Materials Mutant | -9/Materials Mutant | -9/Mines Mutant | -7/Zion Mutant | -6/Proximity Caves Resources | -11 -10 -9 -9 -7 -6 ----------- Run | Yrd Mat Mat Min Zio Pro Matter Collected 822 | 226 64 237 . 83 212 Remotely 190 | . 64 126 . . . Salvage Created 684 | . 64 503 . . 117 Parts 48 | . 5 36 . . 7 Haulers Intercepted . | . . . . . . Recyclers Shooed . | . . . . . . Parts Field Recycled . | . . . . . . Retrieved Matter . | . . . . . . Parts Self-Destructed 28 | . . . . . 28 Prevented . | . . . . . . Kills | -11 -10 -9 -9 -7 -6 ------- Run | Yrd Mat Mat Min Zio Pro Combat Hostiles Destroyed 24 | . 3 17 . . 4 Guns 13 | . 3 10 . . . Cannons 11 | . . 7 . . 4 Classes Destroyed 7 | . 2 4 . . 1 Worker 2 | . 1 1 . . . Builder 2 | . . 2 . . . Watcher 2 | . . 2 . . . Swarmer 12 | . 3 7 . . 2 Grunt 8 | . . 7 . . 1 Brawler 1 | . . . . . 1 Sentry 3 | . . 3 . . . Best Kill Streak 5 | . 2 5 . . 2 Combat Bots Only 5 | . 2 5 . . 2 Max Kills in Single Turn 3 | . 1 3 . . 1 Gunslinging 1 | . . 1 . . . Exploded . | . . . . . . Melee . | . . . . . . Uniques/NPCs Destroyed . | . . . . . . Combat | -11 -10 -9 -9 -7 -6 -------- Run | Yrd Mat Mat Min Zio Pro Hostile Shots Fired 178 | . 30 91 . . 57 Missed 67 | . 11 38 . . 18 Damage Taken 1790 | . 152 669 . . 969 Core 432 | . 24 187 . . 221 Absorbed by Shields . | . . . . . . Core Remaining (%) 95 | 100 90 . . . . Volleys Fired 105 | . 10 72 . . 23 Largest 2 | . 2 2 . . 1 Hottest 70 | . 70 70 . . 60 Shots Fired 148 | . 19 106 . . 23 Gun 98 | . 19 79 . . . Cannon 44 | . . 27 . . 17 Launcher 6 | . . . . . 6 Special . | . . . . . . Kinetic 98 | . 10 71 . . 17 Thermal 44 | . 9 35 . . . Explosive 6 | . . . . . 6 Electromagnetic . | . . . . . . Robot Hit Streak 11 | . 4 11 . . 5 Robot Miss Streak 4 | . 3 3 . . 4 Penetration Max 1 | . . 1 . . . Secondary Targets 3 | . . 3 . . . Max Gunslinging Chain 1 | . . 1 . . . Shots Hit Robots 86 | . 9 68 . . 9 Core Hits 37 | . 5 26 . . 6 Critical Kills . | . . . . . . Critical Parts Destroyed . | . . . . . . Critical Strikes 6 | . . 6 . . . Burn 3 | . . 3 . . . Blast 3 | . . 3 . . . Melee Attacks . | . . . . . . Impact . | . . . . . . Slashing . | . . . . . . Piercing . | . . . . . . Sneak Attacks . | . . . . . . Combat Hostiles . | . . . . . . Follow-up Attacks . | . . . . . . Damage Inflicted 2379 | . 89 1755 . . 535 Guns 605 | . 89 516 . . . Cannons 1479 | . . 1058 . . 421 Explosions 295 | . . 181 . . 114 Melee . | . . . . . . Ramming . | . . . . . . Kinetic 1747 | . 52 1274 . . 421 Thermal 518 | . 37 481 . . . Explosive 114 | . . . . . 114 Electromagnetic . | . . . . . . Impact . | . . . . . . Slashing . | . . . . . . Piercing . | . . . . . . Highest Corruption . | . . . . . . Average Corruption . | . . . . . . Corruption Purged . | . . . . . . Corruption Blocked . | . . . . . . Overload Shots . | . . . . . . Overflow Damage 177 | . . 177 . . . Projectiles 124 | . . 124 . . . Explosions 53 | . . 53 . . . Melee . | . . . . . . Knockbacks 12 | . . 12 . . . Impact . | . . . . . . Kinetic 10 | . . 10 . . . Secondary 2 | . . 2 . . . Self-Inflicted Damage 90 | . . 44 . . 46 Shots 2 | . . 1 . . 1 Rammed . | . . . . . . Targets Rammed . | . . . . . . Kicked . | . . . . . . Crushed . | . . . . . . Highest Temperature 335 | . 70 76 . . 335 Average Temperature 37 | . 27 19 . . 83 Received Heat Transfer 591 | . . 180 . . 411 Siege Activations . | . . . . . . Robots Corrupted . | . . . . . . Combat Hostiles . | . . . . . . Parts Fried . | . . . . . . Impact Corruptions . | . . . . . . Robots Melted . | . . . . . . Combat Hostiles . | . . . . . . Parts Melted 7 | . . 7 . . . Heat Transferred 1321 | . 111 1210 . . . Parts Sabotaged . | . . . . . . Parts Stolen . | . . . . . . Parts Stripped . | . . . . . . Power Chain Reactions . | . . . . . . Alert | -11 -10 -9 -9 -7 -6 ------- Run | Yrd Mat Mat Min Zio Pro Peak Influence 387 | . 90 387 150 . . Initial 150 | . . 37 150 . . Average 167 | . 65 196 150 . . Maximum Alert Level 1 | . . 1 . . . Low Security (%) 73 | 100 100 66 100 . . Level 1 26 | . . 33 . . . Level 2 . | . . . . . . Level 3 . | . . . . . . Level 4 . | . . . . . . Level 5 . | . . . . . . High Security . | . . . . . . Max Security . | . . . . . . Squads Dispatched 2 | . 1 1 . . . Investigation 1 | . . 1 . . . Extermination . | . . . . . . Reinforcement 1 | . 1 . . . . Assault . | . . . . . . Garrison . | . . . . . . Intercept . | . . . . . . Searches Triggered . | . . . . . . Construction Impeded . | . . . . . . Haulers Reinforced . | . . . . . . Active Scanning Responses . | . . . . . . Cargo Convoy Interrupts . | . . . . . . Stealth | -11 -10 -9 -9 -7 -6 --------- Run | Yrd Mat Mat Min Zio Pro Distress Signals 2 | . . 2 . . . Communications Jammed . | . . . . . . Distress Signals . | . . . . . . Times Spotted 42 | . 4 26 . . 12 Peak Tracking Total 5 | . 3 5 . . 5 Tactical Retreats 2 | . . 2 . . . Traps | -11 -10 -9 -9 -7 -6 ------- Run | Yrd Mat Mat Min Zio Pro Traps Triggered 1 | . . 1 . . . Indirectly . | . . . . . . Trap Hack Attempts . | . . . . . . Triggered . | . . . . . . Disarmed . | . . . . . . Reprogrammed . | . . . . . . Reused . | . . . . . . Traps Extracted . | . . . . . . Installed . | . . . . . . Triggered . | . . . . . . Machines | -11 -10 -9 -9 -7 -6 ---------- Run | Yrd Mat Mat Min Zio Pro Machines Disabled 4 | . . 3 . . 1 Max in Single Turn 3 | . . 3 . . . Machines Repaired . | . . . . . . Machines Dismantled . | . . . . . . Machines Sabotaged . | . . . . . . Overloaded Fab Kills . | . . . . . . Hacking | -11 -10 -9 -9 -7 -6 --------- Run | Yrd Mat Mat Min Zio Pro Machines Accessed 1 | . . 1 . . . Terminals . | . . . . . . Fabricators . | . . . . . . Repair Stations . | . . . . . . Recycling Units 1 | . . 1 . . . Scanalyzers . | . . . . . . Garrison Access . | . . . . . . Total Hacks 4 | . . 4 . . . Successful 1 | . . 1 . . . Failed 3 | . . 3 . . . Catastrophic 1 | . . 1 . . . Database Lockouts . | . . . . . . Manual 1 | . . . . 1 . Terminals . | . . . . . . Fabricators . | . . . . . . Repair Stations . | . . . . . . Recycling Units 4 | . . 4 . . . Scanalyzers . | . . . . . . Garrison Access . | . . . . . . Terminal Hacks . | . . . . . . Fabricator Hacks . | . . . . . . Repair Station Hacks . | . . . . . . Recycling Unit Hacks 1 | . . 1 . . . Retrieve Components 1 | . . 1 . . . Scanalyzer . | . . . . . . Garrison Access Hacks . | . . . . . . Unauthorized Hacks . | . . . . . . Terminals . | . . . . . . Fabricators . | . . . . . . Repair Stations . | . . . . . . Recycling Units . | . . . . . . Scanalyzers . | . . . . . . Garrison Access . | . . . . . . Data Cores Recovered . | . . . . . . Used . | . . . . . . Hacking Detections 1 | . . 1 . . . Full Trace Events . | . . . . . . Feedback Events . | . . . . . . Feedback Blocked . | . . . . . . Robot Schematics Acquired . | . . . . . . Robots Built . | . . . . . . Authchips . | . . . . . . Time . | . . . . . . Total Robot Build Rating . | . . . . . . Part Schematics Acquired . | . . . . . . Parts Built . | . . . . . . Authchips . | . . . . . . Time . | . . . . . . Total Part Build Rating . | . . . . . . Parts Repaired . | . . . . . . Time . | . . . . . . Parts Recycled . | . . . . . . Recycled Matter . | . . . . . . Retrieved Matter . | . . . . . . Retrieved Components 1 | . . 1 . . . Parts Scanalyzed . | . . . . . . Part Schematics Acquired . | . . . . . . Parts Damaged . | . . . . . . Bothacking | -11 -10 -9 -9 -7 -6 ------------ Run | Yrd Mat Mat Min Zio Pro Used RIF Installer . | . . . . . . Robots Hacked . | . . . . . . Non-combat . | . . . . . . Combat . | . . . . . . Robot Hacks Applied . | . . . . . . Relay Couplers Released . | . . . . . . Fabnet Peak Effective % . | . . . . . . Robots Rewired . | . . . . . . Allies Hacked . | . . . . . . Hacks Repelled . | . . . . . . Allies | -11 -10 -9 -9 -7 -6 -------- Run | Yrd Mat Mat Min Zio Pro Total Allies 2 | . . . . 2 . Largest Group 2 | . . . . 2 2 Highest-Rated Group 192 | . . . . 192 192 Highest-Rated Ally 96 | . . . . 96 96 Total Orders . | . . . . . . Ally Attacks 42 | . . . . . 42 Total Damage 1605 | . . . . . 1605 Kills 9 | . . . . . 9 Allies Corrupted . | . . . . . . Allies Melted . | . . . . . . Intel | -11 -10 -9 -9 -7 -6 ------- Run | Yrd Mat Mat Min Zio Pro Robot Analysis Total . | . . . . . . Derelict Logs Recovered 3 | . . . 1 2 . Drone Launches . | . . . . . . Drone Recoveries . | . . . . . . Exploration | -11 -10 -9 -9 -7 -6 ------------- Run | Yrd Mat Mat Min Zio Pro Turns Passed 3237 | 58 99 673 9 1790 608 Spaces Moved 1915 | 51 70 388 10 1076 320 Core 19 | 12 . . . 3 4 Treads . | . . . . . . Legs 945 | . . . . 629 316 Wheels 951 | 39 70 388 10 444 . Hover . | . . . . . . Flight . | . . . . . . Fastest Speed 50 | 50 90 85 100 100 120 Average Speed 147 | 80 90 100 100 165 171 Slowest Speed 500 | 90 90 120 100 500 400 Overloaded Moves . | . . . . . . Propulsion Burnouts . | . . . . . . Robots Hopped . | . . . . . . Cave-ins Triggered . | . . . . . . Exploration Rate (%) 33 | 3 22 38 6 80 50 Regions Visited 5 Branch Regions 3 Pre-discovered Areas 4 | . . . . 4 . Known Exits Taken . | . . . . . . Unknown Exits Taken 5 | 1 1 1 1 1 . Scrap Searched 9 | . . . . 4 5 Spaces Dug . | . . . . . . Terrain Destroyed 73 | . . 26 . . 47 Melee . | . . . . . . Projectile 23 | . . 11 . . 12 AOE 50 | . . 15 . . 35 Terrain Rammed . | . . . . . . Walls Destroyed . | . . . . . . Machines Disabled . | . . . . . . Actions | -11 -10 -9 -9 -7 -6 --------- Run | Yrd Mat Mat Min Zio Pro Total 2163 | 67 88 562 9 1089 348 Wait 84 | . . 84 . . . Move 1910 | 50 69 387 9 1075 320 Hop . | . . . . . . Pick Up 29 | 11 6 7 . 5 . Fast Attach 7 | 1 . 3 . 2 1 Attach 15 | 5 1 5 . . 4 Detach . | . . . . . . Swap 1 | . 1 . . . . Drop 12 | . 1 4 . 7 . Fire 105 | . 10 72 . . 23 Melee . | . . . . . . Ram . | . . . . . . Kick . | . . . . . . Crush . | . . . . . . Escape Stasis . | . . . . . . Rewire . | . . . . . . Trap . | . . . . . . Miscellaneous . | . . . . . . Route ------- -11/Scrapyard -10/Materials -9/Materials -9/Mines -7/Zion -6/Proximity Caves History --------- Turn | Location | Event 9 | -11/Scrapyard | Discovered new exit (range 16) 59 | -11/Scrapyard | Entered Materials 148 | -10/Materials | Discovered new exit (range 3) 158 | -10/Materials | Entered another Materials area 158 | -9/Materials | Evolved 2 slots: Utility x2 317 | -9/Materials | Build established: Mutant 596 | -9/Materials | Lost 3 parts (1n2w) 826 | -9/Materials | Discovered new exit (range 6) 831 | -9/Materials | Entered Mines 832 | -9/Mines | A Derelict revealed a hidden shortcut to a safe place 833 | -9/Mines | Learned 2 Materials zone layouts 840 | -9/Mines | Entered Zion 862 | -7/Zion | Given A8's code to call for help 936 | -7/Zion | Learned location of Extension (-6) 1001 | -7/Zion | Learned location of Armory (-3) 1351 | -7/Zion | Given the Hacking Drone Bay 1372 | -7/Zion | Found Prototype Device 1372 | -7/Zion | Identified Hacking Drone Bay 1792 | -7/Zion | Learned Factory recycling unit intel 1987 | -7/Zion | Learned location of Warlord (-4) 2112 | -7/Zion | Enhanced Grunt warped into view, answering call for help 2119 | -7/Zion | Enhanced Grunt warped into view, answering call for help 2611 | -7/Zion | Discovered new exit (range 9) 2630 | -7/Zion | Entered Proximity Caves 2630 | -6/Proximity Caves | Accompanied by 2 allies 2823 | -6/Proximity Caves | Received a Behemoth hack from an annoying Tinkerer 3139 | -6/Proximity Caves | Attracted the attention of an 0b10 outpost 3177 | -6/Proximity Caves | Spotted B-75 Beast 3183 | -6/Proximity Caves | Core integrity fell below 50% 3202 | -6/Proximity Caves | Core integrity fell below 20% 3238 | -6/Proximity Caves | Destroyed by B-75 Beast with Heavy Machine Gun Last Messages --------------- Enhanced Grunt knocked back. Enhanced Grunt destroyed. Slug penetrates Wall. Hvy. Assault Cannon destroyed. Knocked back. Acquired 6 matter. Acquired 28 matter. Ion Engine destroyed. Acquired 1 matter. Critical hit (Meltdown: +330). Knocked back. Destroyed Med. Reflective Plating. Ion Engine destroyed. Mak. Leg destroyed. The unstable cave ceiling collapses. Flexi-carbon Leg destroyed. Hacking Drone Bay destroyed. The unstable cave ceiling collapses. Acquired 60 matter. The unstable cave ceiling collapses. Map ----- +----------------------------------------------------+ | #????????????????????????????????????????????????? | | #????????????????????????????????????????????????? | | #????????????????????????????????????????????????? | | #????????????????????????????????????????????????? | | ?????????????????????????????????????????????????? | | ?????????????????????????????????????????????????? | | ?????????????????????????????????????????????????? | | ?????????????????????????????????????????????????? | | ?????????????????????????????????????????????????? | | ?????????????????????????????????????????????????? | | ?????????????????????????????????????????????????? | | #????????????????????????????????????????????????? | | #????????????????????????????????????????????????? | | ?????????????????????????????????????????????????? | | ?????????????????????????????????????????????????? | | ??#????????????????????????????????????###???????? | | ?? ##?????????????????????????????????##"#####???? | | ??? ##???????????????????????????????# % ##??? | | ??? ##??????????????##??????????????# $ #??? | | ???? #????######???## ?????????????# ??? | | ???? #??### ##??# ??###???????# ??? | | ##### #?## #### ##"#?????? B #??? | | ### ? #???## B #??? | | ### ### #### % #??? | | ##### #" #%; ! #????? | | ??## #" @; %! "#????? | | ??# #" #%% % % # #" % ###????? | | ??# #" #; ##" "#??????? | | ??# "## #"Y ;% #" ##??????? | | ??## "## #"""" % ; ### # # #???????? | | ???#" % ####;;; ;##??????## #???????? | | ???#" "### #"" ;#### #?# #???????? | | ???##% ##???### #?# #???????? | | ??## ##??## ### #?# ???????? | | ?## % #### ##?## ???????? | | ?# ####???# ?????? | | ?## ##??????# ?????? | | ??## ####### ##???????### ??????? | | ???# ##?????####???????????# #?????? | | ???###???????????????????????# ## #?????? | | ?????????????????????????????? #? #?????? | | ?????????????????????????????? #?# #??????? | | ??????????????????????????????## #?? ???????? | | ???????????????????????????????? #???????????? | | ????????????????????????????????# #???????????? | | ????????????????????????????????? #???????????? | | ?????????????????????????????????? ????????????? | | ?????????????????????????????????????????????????? | | ?????????????????????????????????????????????????? | | ?????????????????????????????????????????????????? | +----------------------------------------------------+ Best States ------------- Heat Dissipation 38 Energy Generation 10 Energy Capacity 250 Matter Stores 300 Matter Capacity 300 Sight Range 18 Terrain Scan Density 10 Evasion (%) 55 Offensive Hacking 11 Item Schematics ----------------- None Robot Schematics ------------------ None Fabricated ------------ Nothing Alien Tech Used ----------------- None Achievements -------------- Help From High Places Challenges ------------ None Game ------ Seed DroneSegregatorShockpuncher Manual? 0 Play Time 00:28:18 Cumulative 17.3 hours Start 2024.02.29 @ 09:18:37 End 2024.02.29 @ 12:17:58 Sessions 4 Manual Loads 0 Difficulty Rogue Special Mode None Game No. 39 Rogue 26 Adventurer 13 Explorer 0 Win Type - Total 0 Types 0/0/0/0/0/0/0/0/0 Lore% 16 Gallery% 20 Achievement% 15 Wizard Run 0 Options --------- Layout 1 ASCII 0 Keyboard 0 Movement Mouse Keybinds 0 Fullscreen 1 Font 24/Smallcaps Map View 50x35 Zoom Use 0% Tactical HUD 0 Map Filters NONE Filters NONE Steam 1 RUN: 5d4394bc-ba62-436b-ba7d-bf86aa2f2af0